fUSD/lending_fUSD_20240727
["ID","MTS","AMOUNT","RATE_DAILY","PERIOD"]
[333418372,1722119460418,-556.61609708,0.00010999,2]
[333418373,1722119460430,-509.6,0.00010999,2]
[333418374,1722119460440,-500.0,0.00010999,2]
[333418375,1722119460450,-185.859806,0.00010999,2]
[333418376,1722119460460,-185.859806,0.00010999,2]
[333418377,1722119460470,-500.0,0.00010999,2]
[333418378,1722119460480,-185.859806,0.00010999,2]
[333418379,1722119460489,-185.859806,0.00010999,2]
[333418380,1722119460499,-185.859806,0.00010999,2]
[333418381,1722119460508,-185.859806,0.00010999,2]
[333418382,1722119460518,-151.0,0.00010999,2]
[333418383,1722119460527,-151.0,0.00010999,2]
[333418384,1722119460537,-151.0,0.00010999,2]
[333418385,1722119460547,-165907.83045951,0.00011,2]
[333418386,1722119460598,-11346.29987849,0.00011,2]
[333418387,1722119460608,-951918.22147839,0.00011,2]
[333418388,1722119460627,-5241.51948132,0.00011,2]
[333418389,1722119460638,-315.91856815,0.00011,2]
[333418390,1722119460650,-1262.56683,0.00011,2]
[333418391,1722119460802,-8754.77445779,0.00011,2]
[333418392,1722119460818,-1319.07941141,0.00011,2]
[333418393,1722119460830,-367282.0500174,0.00011,2]
[333418394,1722119460841,-1950.0,0.00011,2]
[333418395,1722119460853,-1354.14960095,0.00011,2]
[333418396,1722119460894,-500.0,0.00010958,2]
[333418397,1722119460903,-1000.04768187,0.00011,2]
[333418398,1722119460915,-495.58079881,0.00011,2]
[333418399,1722119460930,-13187.61551572,0.00011,2]
[333418400,1722119460970,-500.0,0.00010958,2]
[333418401,1722119460980,-187.5414458,0.00010999,2]
[333418402,1722119460991,-229.9085542,0.00010999,2]
[333418403,1722119461000,-5615.87129566,0.00011,2]
[333418404,1722119461011,-79707.7067173,0.00011,2]
[333418405,1722119461023,-9309.10477623,0.00011,2]
[333418406,1722119461034,-276082.56837001,0.00011,2]
[333418443,1722120455882,1220.85789063,8e-05,2]
[333418444,1722120455903,10000.0,8e-05,2]
[333418445,1722120455924,3329.14210937,8e-05,2]
[333418446,1722120532850,797.06604498,8e-05,2]
[333418447,1722120549064,600.0,8e-05,2]
[333418452,1722120564087,155.0,8e-05,2]
[333418463,1722120598481,188.0,8e-05,4]
[333418464,1722120610681,150.0,8e-05,2]
[333418465,1722120610863,150.0,8e-05,2]
[333418466,1722120611204,150.0,8e-05,2]
[333418467,1722120611413,150.0,8e-05,2]
[333418468,1722120611618,150.0,8e-05,2]
[333418469,1722120611809,150.0,8e-05,2]
[333418470,1722120612018,150.0,8e-05,2]
[333418471,1722120612186,150.0,8e-05,2]
[333418472,1722120612359,150.0,8e-05,2]
[333418473,1722120612567,150.0,8e-05,2]
[333418474,1722120612755,150.0,8e-05,2]
[333418475,1722120612925,150.0,8e-05,2]
[333418476,1722120613135,150.0,8e-05,2]
[333418477,1722120614565,150.0,8e-05,2]
[333418478,1722120614604,150.0,8e-05,2]
[333418479,1722120614650,150.0,8e-05,2]
[333418480,1722120614690,150.0,8e-05,2]
[333418481,1722120614880,150.0,8e-05,2]
[333418482,1722120615052,150.0,8e-05,2]
[333418483,1722120615229,150.0,8e-05,2]
[333418484,1722120615400,150.0,8e-05,2]
[333418485,1722120615582,150.0,8e-05,2]
[333418486,1722120615762,150.0,8e-05,2]
[333418487,1722120615932,150.0,8e-05,2]
[333418488,1722120616104,150.0,8e-05,2]
[333418489,1722120616271,150.0,8e-05,2]
[333418490,1722120616458,150.0,8e-05,2]
[333418491,1722120616650,150.0,8e-05,2]
[333418492,1722120616821,150.0,8e-05,2]
[333418493,1722120617026,150.0,8e-05,2]
[333418494,1722120617210,150.0,8e-05,2]
[333418495,1722120617412,150.0,8e-05,2]
[333418496,1722120617606,130.79184565,8e-05,2]
[333418497,1722120617629,19.20815435,8e-05,2]
[333418498,1722120617792,188.72148073,8e-05,2]
[333418512,1722120631603,-392.36702055,8.218e-05,2]
[333418515,1722120631615,-268.63297945,8.218e-05,2]
[333418517,1722120631625,-400.0,8.218e-05,2]
[333418519,1722120631635,-868.05999344,8.219e-05,2]
[333418522,1722120631776,-225.98000656,8.219e-05,2]
[333418523,1722120631787,-466.71635607,9.697e-05,2]
[333418524,1722120631800,-256.0,9.697e-05,2]
[333418525,1722120631810,-300.0,9.697e-05,2]
[333418526,1722120631820,-10254.93619511,9.698e-05,2]
[333418588,1722120636094,291.0324454,8e-05,2]
[333418594,1722120637648,-660.96571054,9.698e-05,2]
[333418595,1722120637660,-691.27809435,9.698e-05,2]
[333418596,1722120637669,-250.0,9.759e-05,2]
[333418597,1722120637678,-150.0,9.765e-05,2]
[333418598,1722120637687,-167.26565806,9.799e-05,2]
[333418599,1722120637699,-15.70434194,9.799e-05,2]
[333418600,1722120637708,-880.0,9.832e-05,2]
[333418601,1722120637717,-90.21367524,9.888e-05,2]
[333418602,1722120637775,-59.78632476,9.888e-05,2]
[333418603,1722120637784,-499.99,9.888e-05,2]
[333418604,1722120637794,-294.13,9.898e-05,2]
[333418605,1722120637804,-3797.48638633,0.0001,2]
[333418606,1722120637820,-298.93586434,0.0001,2]
[333418607,1722120637886,-2000.12411799,0.0001,2]
[333418608,1722120637897,-804.05363134,0.0001,2]
[333418609,1722120637906,-198.54126417,0.0001,2]
[333418610,1722120637917,-147.71873583,0.0001,2]
[333418611,1722120637926,-150.99,0.00010261,2]
[333418612,1722120637935,-104.74292417,0.00010278,2]
[333418622,1722120639688,-374.07477111,0.00010278,2]
[333418623,1722120639765,-369.62230472,0.00010278,2]
[333418624,1722120639774,-3571.3832,0.00010426,2]
[333418625,1722120639783,-1094.04,0.00010468,2]
[333418626,1722120639792,-200.0,0.00010633,2]
[333418627,1722120639801,-420.0,0.00010667,2]
[333418628,1722120639810,-4410.7835,0.000107,2]
[333418629,1722120639819,-1918.7036,0.000107,2]
[333418630,1722120639829,-1000.0,0.000107,2]
[333418631,1722120639837,-4441.01083877,0.00010735,2]
[333418632,1722120639848,-1495.86967247,0.00010735,2]
[333418633,1722120639859,-1476.83902876,0.00010735,2]
[333418634,1722120639870,-86.28046,0.00010735,2]
[333418635,1722120639884,-150.0,0.00010799,2]
[333418636,1722120639898,-324.53272844,0.000108,2]
[333418637,1722120639910,-329.565,0.000108,2]
[333418638,1722120640083,-188.0,9.697e-05,4]
[333418639,1722120640093,-3279.062364,0.000108,2]
[333418640,1722120640105,-1734.97750756,0.000108,2]
[333418641,1722120640114,-607.01753074,0.000108,2]
[333418876,1722120642603,-286.789308,0.000108,2]
[333418884,1722120642676,-116.19316126,0.000108,2]
[333418886,1722120642686,-335.9591756,0.00010835,2]
[333418893,1722120642742,-3723.699863,0.00010835,2]
[333418902,1722120642818,-275353.9190743,0.00010835,2]
[333418904,1722120642828,-5100.80443964,0.00010848,2]
[333418906,1722120642838,-332.0033,0.00010858,2]
[333418908,1722120642848,-4919.50652989,0.00010874,2]
[333418910,1722120642857,-4919.50652989,0.00010884,2]
[333418912,1722120642867,-4919.50652989,0.00010887,2]
[333418914,1722120642876,-10758.79724634,0.0001089,2]
[333418916,1722120642886,-170.75660458,0.00010899,2]
[333418918,1722120642895,-167.79821276,0.00010899,2]
[333418920,1722120642905,-167.79821271,0.00010899,2]
[333418922,1722120642914,-167.79821271,0.00010899,2]
[333418924,1722120642924,-260.25949932,0.00010899,2]
[333418926,1722120642933,-5335.82302608,0.00010899,2]
[333418928,1722120642943,-167.79821271,0.00010899,2]
[333418930,1722120642952,-5335.82302606,0.00010899,2]
[333418932,1722120642961,-167.79821271,0.00010899,2]
[333418934,1722120642971,-29573.5423,0.000109,2]
[333418936,1722120642980,-2991.1165,0.000109,2]
[333418938,1722120642990,-176.86139305,0.000109,2]
[333418940,1722120642999,-176.86139305,0.000109,2]
[333418942,1722120643009,-176.86139305,0.000109,2]
[333418944,1722120643020,-2703.17830435,0.000109,2]
[333418946,1722120643029,-220.02,0.00010904,3]
[333418948,1722120643040,-152.0,0.00010911,3]
[333418950,1722120643049,-500.0,0.00010912,2]
[333418952,1722120643059,-29244.69705772,0.00010941,2]
[333418954,1722120643068,-153.84,0.00010948,2]
[333418956,1722120643077,-169.58303749,0.00010955,2]
[333418958,1722120643086,-500.0,0.00010958,2]
[333418960,1722120643096,-552.32,0.00010958,2]
[333418962,1722120643105,-503.05744733,0.00010958,2]
[333418964,1722120643115,-500.0,0.00010958,2]
[333418966,1722120643125,-500.0,0.00010958,2]
[333418968,1722120643134,-216.96020312,0.00010958,2]
[333418970,1722120643143,-500.88654854,0.00010958,2]
[333418972,1722120643153,-500.52478518,0.00010958,2]
[333418974,1722120643163,-500.0,0.00010958,2]
[333418976,1722120643172,-500.0,0.00010958,2]
[333418977,1722120643182,-504.60310984,0.00010958,2]
[333418978,1722120643191,-500.0,0.00010958,2]
[333418979,1722120643202,-500.0,0.00010958,2]
[333418980,1722120643212,-500.0,0.00010958,2]
[333418981,1722120643222,-500.0,0.00010958,2]
[333418982,1722120643232,-500.0,0.00010958,2]
[333418983,1722120643242,-500.0,0.00010958,2]
[333418984,1722120643252,-210.83,0.00010958,2]
[333418985,1722120643262,-369.60790835,0.00010958,2]
[333418986,1722120643273,-500.0,0.00010958,2]
[333418987,1722120643282,-500.0,0.00010958,2]
[333418988,1722120643292,-503.17776251,0.00010958,2]
[333418989,1722120643301,-500.0,0.00010958,2]
[333418990,1722120643311,-500.0,0.00010958,2]
[333418991,1722120643320,-500.0,0.00010958,2]
[333418992,1722120643330,-500.0,0.00010958,2]
[333418993,1722120643340,-444.3699329,0.00010958,2]
[333418995,1722120643350,-500.0,0.00010958,2]
[333418997,1722120643359,-500.0,0.00010958,2]
[333418999,1722120643369,-504.12332903,0.00010958,2]
[333419001,1722120643379,-500.0,0.00010958,2]
[333419003,1722120643388,-595.38863683,0.00010958,2]
[333419004,1722120643397,-500.0,0.00010958,2]
[333419006,1722120643407,-507.37188514,0.00010958,2]
[333419008,1722120643417,-500.0,0.00010958,2]
[333419010,1722120643426,-500.0,0.00010958,2]
[333419012,1722120643436,-501.09104374,0.00010958,2]
[333419014,1722120643445,-503.65311456,0.00010958,2]
[333419016,1722120643454,-500.0,0.00010958,2]
[333419018,1722120643464,-218.10845645,0.00010958,2]
[333419020,1722120643475,-500.0,0.00010958,2]
[333419022,1722120643484,-500.0,0.00010958,2]
[333419024,1722120643494,-500.0,0.00010958,2]
[333419026,1722120643504,-500.0,0.00010958,2]
[333419027,1722120643514,-500.0,0.00010958,2]
[333419028,1722120643527,-500.0,0.00010958,2]
[333419029,1722120643536,-480.0,0.00010958,2]
[333419030,1722120643546,-500.0,0.00010958,2]
[333419031,1722120643556,-500.0,0.00010958,2]
[333419032,1722120643569,-500.0,0.00010958,2]
[333419033,1722120643579,-500.0,0.00010958,2]
[333419034,1722120643590,-502.88613,0.00010958,2]
[333419035,1722120643599,-573.66388409,0.00010958,2]
[333419036,1722120643610,-500.0,0.00010958,2]
[333419037,1722120643619,-500.0,0.00010958,2]
[333419038,1722120643629,-500.0,0.00010958,2]
[333419039,1722120643640,-500.0,0.00010958,2]
[333419040,1722120643651,-500.0,0.00010958,2]
[333419041,1722120643660,-500.0,0.00010958,2]
[333419042,1722120643670,-500.0,0.00010958,2]
[333419043,1722120643679,-500.0,0.00010958,2]
[333419044,1722120643689,-500.0,0.00010958,2]
[333419045,1722120643699,-372.22244067,0.00010958,2]
[333419046,1722120643708,-500.0,0.00010958,2]
[333419047,1722120643718,-500.0,0.00010958,2]
[333419048,1722120643727,-500.0,0.00010958,2]
[333419049,1722120643736,-511.06,0.00010958,2]
[333419050,1722120643745,-500.0,0.00010958,2]
[333419051,1722120643755,-500.0,0.00010958,2]
[333419052,1722120643764,-500.0,0.00010958,2]
[333419053,1722120643775,-500.0,0.00010958,2]
[333419054,1722120643784,-501.1139728,0.00010958,2]
[333419055,1722120643794,-510.29,0.00010958,2]
[333419056,1722120643804,-500.0,0.00010958,2]
[333419057,1722120643813,-500.0,0.00010958,2]
[333419058,1722120643823,-500.0,0.00010958,2]
[333419059,1722120643833,-500.0,0.00010958,2]
[333419060,1722120643842,-500.0,0.00010958,2]
[333419061,1722120643851,-500.0,0.00010958,2]
[333419062,1722120643861,-476.85,0.00010958,2]
[333419063,1722120643871,-535.42,0.00010958,2]
[333419064,1722120643880,-500.57343303,0.00010958,2]
[333419065,1722120643889,-500.0,0.00010958,2]
[333419066,1722120643899,-500.0,0.00010958,2]
[333419067,1722120643908,-500.0,0.00010958,2]
[333419068,1722120643918,-500.0,0.00010958,2]
[333419069,1722120643927,-502.92522877,0.00010958,2]
[333419070,1722120643936,-500.0,0.00010958,2]
[333419071,1722120643946,-500.0,0.00010958,2]
[333419072,1722120643956,-192.79346922,0.00010958,2]
[333419073,1722120643966,-500.0,0.00010958,2]
[333419074,1722120643976,-500.0,0.00010958,2]
[333419075,1722120643986,-404.90905659,0.00010958,2]
[333419076,1722120643996,-500.0,0.00010958,2]
[333419077,1722120644006,-207.42,0.00010958,2]
[333419078,1722120644016,-500.38167359,0.00010958,2]
[333419079,1722120644025,-500.0,0.00010958,2]
[333419080,1722120644035,-500.0,0.00010958,2]
[333419081,1722120644045,-500.0,0.00010958,2]
[333419082,1722120644055,-460.65,0.00010958,2]
[333419083,1722120644065,-393.86386919,0.00010958,2]
[333419084,1722120644074,-500.0,0.00010958,2]
[333419085,1722120644084,-500.0,0.00010958,2]
[333419086,1722120644094,-414.46,0.00010958,2]
[333419087,1722120644103,-500.0,0.00010958,2]
[333419088,1722120644113,-500.0,0.00010958,2]
[333419089,1722120644123,-500.0,0.00010958,2]
[333419090,1722120644133,-500.0,0.00010958,2]
[333419091,1722120644143,-500.0,0.00010958,2]
[333419092,1722120644153,-500.0,0.00010958,2]
[333419093,1722120644162,-500.0,0.00010958,2]
[333419094,1722120644171,-500.0,0.00010958,2]
[333419095,1722120644181,-540.26,0.00010958,2]
[333419096,1722120644191,-327.944729,0.00010958,2]
[333419097,1722120644201,-267.85,0.00010958,2]
[333419098,1722120644210,-510.08450892,0.00010958,2]
[333419099,1722120644221,-500.0,0.00010958,2]
[333419100,1722120644230,-500.0,0.00010958,2]
[333419101,1722120644239,-500.0,0.00010958,2]
[333419102,1722120644249,-500.0,0.00010958,2]
[333419103,1722120644470,-500.0,0.00010958,2]
[333419104,1722120644481,-500.0,0.00010958,2]
[333419105,1722120644491,-500.0,0.00010958,2]
[333419106,1722120644500,-500.0,0.00010958,2]
[333419107,1722120644510,-500.0,0.00010958,2]
[333419108,1722120644522,-500.0,0.00010958,2]
[333419109,1722120644532,-500.0,0.00010958,2]
[333419110,1722120644542,-248.58,0.00010958,2]
[333419111,1722120644555,-533.90841053,0.00010958,2]
[333419112,1722120644567,-500.0,0.00010958,2]
[333419113,1722120644576,-500.0,0.00010958,2]
[333419114,1722120644586,-500.0,0.00010958,2]
[333419115,1722120644595,-502.56576992,0.00010958,2]
[333419116,1722120644605,-410.9737951,0.00010958,2]
[333419117,1722120644619,-500.0,0.00010958,2]
[333419118,1722120644629,-500.0,0.00010958,2]
[333419119,1722120644640,-500.0,0.00010958,2]
[333419120,1722120644650,-500.0,0.00010958,2]
[333419121,1722120644660,-500.0,0.00010958,2]
[333419122,1722120644670,-500.0,0.00010958,2]
[333419123,1722120644680,-613.76537409,0.00010958,2]
[333419124,1722120644690,-576.45,0.00010958,2]
[333419125,1722120644699,-500.0,0.00010958,2]
[333419126,1722120644709,-217.05917835,0.00010958,2]
[333419127,1722120644719,-500.0,0.00010958,2]
[333419128,1722120644730,-500.0,0.00010958,2]
[333419129,1722120644740,-500.0,0.00010958,2]
[333419130,1722120644750,-382.71385907,0.00010958,2]
[333419131,1722120644760,-500.0,0.00010958,2]
[333419132,1722120644770,-500.0,0.00010958,2]
[333419133,1722120644780,-500.0,0.00010958,2]
[333419134,1722120644790,-500.0,0.00010958,2]
[333419135,1722120644800,-500.0,0.00010958,2]
[333419136,1722120644810,-500.0,0.00010958,2]
[333419137,1722120644819,-501.65290088,0.00010958,2]
[333419138,1722120644829,-500.0,0.00010958,2]
[333419139,1722120644839,-500.0,0.00010958,2]
[333419140,1722120644848,-500.0,0.00010958,2]
[333419141,1722120644858,-500.0,0.00010958,2]
[333419142,1722120644867,-500.0,0.00010958,2]
[333419143,1722120644877,-500.0,0.00010958,2]
[333419144,1722120644887,-500.0,0.00010958,2]
[333419145,1722120644897,-500.0,0.00010958,2]
[333419146,1722120644907,-500.0,0.00010958,2]
[333419147,1722120644917,-500.0,0.00010958,2]
[333419148,1722120644926,-500.0,0.00010958,2]
[333419149,1722120644937,-500.0,0.00010958,2]
[333419150,1722120644947,-500.0,0.00010958,2]
[333419151,1722120644956,-502.1314315,0.00010958,2]
[333419152,1722120644966,-500.0,0.00010958,2]
[333419153,1722120644976,-500.0,0.00010958,2]
[333419154,1722120644986,-500.0,0.00010958,2]
[333419155,1722120644995,-500.0,0.00010958,2]
[333419156,1722120645004,-500.0,0.00010958,2]
[333419157,1722120645014,-500.0,0.00010958,2]
[333419158,1722120645025,-462.6,0.00010958,2]
[333419159,1722120645034,-500.0,0.00010958,2]
[333419160,1722120645043,-500.0,0.00010958,2]
[333419161,1722120645053,-500.0,0.00010958,2]
[333419162,1722120645062,-500.0,0.00010958,2]
[333419163,1722120645071,-500.0,0.00010958,2]
[333419164,1722120645081,-500.0,0.00010958,2]
[333419165,1722120645090,-500.0,0.00010958,2]
[333419166,1722120645099,-500.0,0.00010958,2]
[333419167,1722120645109,-500.0,0.00010958,2]
[333419168,1722120645118,-500.0,0.00010958,2]
[333419169,1722120645127,-221.45,0.00010958,2]
[333419170,1722120645136,-500.0,0.00010958,2]
[333419171,1722120645146,-201.60660502,0.00010958,2]
[333419172,1722120645155,-500.0,0.00010958,2]
[333419173,1722120645164,-500.0,0.00010958,2]
[333419174,1722120645175,-500.0,0.00010958,2]
[333419175,1722120645184,-500.0,0.00010958,2]
[333419176,1722120645194,-500.0,0.00010958,2]
[333419177,1722120645204,-500.55349502,0.00010958,2]
[333419178,1722120645213,-500.0,0.00010958,2]
[333419179,1722120645223,-500.46570589,0.00010958,2]
[333419180,1722120645232,-510.84326528,0.00010958,2]
[333419181,1722120645242,-500.0,0.00010958,2]
[333419182,1722120645251,-500.0,0.00010958,2]
[333419183,1722120645261,-392.98,0.00010958,2]
[333419184,1722120645271,-500.0,0.00010958,2]
[333419185,1722120645280,-281.26631215,0.00010958,2]
[333419186,1722120645289,-500.0,0.00010958,2]
[333419187,1722120645299,-500.0,0.00010958,2]
[333419188,1722120645309,-500.0,0.00010958,2]
[333419189,1722120645318,-515.4473325,0.00010958,2]
[333419190,1722120645328,-500.0,0.00010958,2]
[333419191,1722120645338,-500.0,0.00010958,2]
[333419192,1722120645347,-500.0,0.00010958,2]
[333419193,1722120645357,-500.0,0.00010958,2]
[333419194,1722120645366,-500.0,0.00010958,2]
[333419195,1722120645375,-500.0,0.00010958,2]
[333419196,1722120645385,-500.0,0.00010958,2]
[333419197,1722120645394,-500.0,0.00010958,2]
[333419198,1722120645404,-518.09476691,0.00010958,2]
[333419199,1722120645413,-500.0,0.00010958,2]
[333419200,1722120645422,-500.0,0.00010958,2]
[333419201,1722120645432,-500.0,0.00010958,2]
[333419202,1722120645441,-500.0,0.00010958,2]
[333419203,1722120645451,-500.0,0.00010958,2]
[333419204,1722120645461,-500.0,0.00010958,2]
[333419205,1722120645470,-500.0,0.00010958,2]
[333419206,1722120645480,-500.0,0.00010958,2]
[333419207,1722120645489,-594.38,0.00010958,2]
[333419208,1722120645499,-500.0,0.00010958,2]
[333419209,1722120645507,-500.0,0.00010958,2]
[333419210,1722120645517,-500.0,0.00010958,2]
[333419211,1722120645526,-500.0,0.00010958,2]
[333419212,1722120645535,-322.64,0.00010958,2]
[333419213,1722120645544,-500.0,0.00010958,2]
[333419214,1722120645553,-500.0,0.00010958,2]
[333419215,1722120645566,-500.0,0.00010958,2]
[333419217,1722120645575,-500.0,0.00010958,2]
[333419220,1722120645584,-500.0,0.00010958,2]
[333419222,1722120645593,-500.0,0.00010958,2]
[333419225,1722120645603,-311.29,0.00010958,2]
[333419227,1722120645613,-500.0,0.00010958,2]
[333419229,1722120645623,-500.0,0.00010958,2]
[333419231,1722120645632,-500.0,0.00010958,2]
[333419233,1722120645642,-500.0,0.00010958,2]
[333419235,1722120645651,-502.52913,0.00010958,2]
[333419237,1722120645660,-500.0,0.00010958,2]
[333419239,1722120645670,-500.0,0.00010958,2]
[333419240,1722120645679,-500.0,0.00010958,2]
[333419241,1722120645689,-500.0,0.00010958,2]
[333419242,1722120645698,-500.0,0.00010958,2]
[333419243,1722120645707,-500.0,0.00010958,2]
[333419244,1722120645716,-538.33,0.00010958,2]
[333419245,1722120645727,-366.28327007,0.00010958,2]
[333419246,1722120645736,-500.0,0.00010958,2]
[333419247,1722120645747,-500.0,0.00010958,2]
[333419248,1722120645758,-500.0,0.00010958,2]
[333419249,1722120645769,-519.09,0.00010958,2]
[333419250,1722120645778,-500.0,0.00010958,2]
[333419251,1722120645789,-500.0,0.00010958,2]
[333419252,1722120645799,-500.0,0.00010958,2]
[333419253,1722120645807,-500.0,0.00010958,2]
[333419254,1722120645817,-536.9,0.00010958,2]
[333419255,1722120645826,-502.42396082,0.00010958,2]
[333419256,1722120645835,-500.28,0.00010958,2]
[333419257,1722120645844,-500.0,0.00010958,2]
[333419258,1722120645854,-500.0,0.00010958,2]
[333419259,1722120645863,-500.0,0.00010958,2]
[333419260,1722120645873,-626.08881458,0.00010958,2]
[333419261,1722120645882,-500.0,0.00010958,2]
[333419262,1722120645891,-500.0,0.00010958,2]
[333419263,1722120645901,-500.0,0.00010958,2]
[333419264,1722120645910,-500.0,0.00010958,2]
[333419265,1722120645919,-500.0,0.00010958,2]
[333419266,1722120645928,-500.0,0.00010958,2]
[333419267,1722120645938,-500.0,0.00010958,2]
[333419268,1722120645947,-500.0,0.00010958,2]
[333419269,1722120645956,-500.0,0.00010958,2]
[333419270,1722120645966,-500.0,0.00010958,2]
[333419271,1722120645975,-505.55942829,0.00010958,2]
[333419272,1722120645984,-583.11,0.00010958,2]
[333419273,1722120645993,-500.0,0.00010958,2]
[333419274,1722120646002,-500.0,0.00010958,2]
[333419275,1722120646012,-500.0,0.00010958,2]
[333419276,1722120646022,-500.0,0.00010958,2]
[333419277,1722120646032,-564.99,0.00010958,2]
[333419278,1722120646041,-500.0,0.00010958,2]
[333419279,1722120646051,-500.0,0.00010958,2]
[333419280,1722120646060,-500.0,0.00010958,2]
[333419281,1722120646069,-500.0,0.00010958,2]
[333419282,1722120646079,-502.65897812,0.00010958,2]
[333419283,1722120646088,-500.0,0.00010958,2]
[333419284,1722120646098,-500.0,0.00010958,2]
[333419285,1722120646107,-500.0,0.00010958,2]
[333419286,1722120646116,-500.0,0.00010958,2]
[333419287,1722120646126,-500.0,0.00010958,2]
[333419288,1722120646135,-571.03,0.00010958,2]
[333419289,1722120646144,-500.0,0.00010958,2]
[333419290,1722120646153,-500.0,0.00010958,2]
[333419291,1722120646163,-500.0,0.00010958,2]
[333419292,1722120646172,-500.0,0.00010958,2]
[333419293,1722120646182,-500.0,0.00010958,2]
[333419294,1722120646191,-500.0,0.00010958,2]
[333419295,1722120646201,-239.52,0.00010958,2]
[333419296,1722120646211,-500.0,0.00010958,2]
[333419297,1722120646220,-500.0,0.00010958,2]
[333419298,1722120646229,-500.0,0.00010958,2]
[333419299,1722120646239,-500.0,0.00010958,2]
[333419300,1722120646248,-465.16,0.00010958,2]
[333419301,1722120646257,-500.0,0.00010958,2]
[333419302,1722120646267,-500.0,0.00010958,2]
[333419303,1722120646277,-500.0,0.00010958,2]
[333419304,1722120646286,-243.41,0.00010958,2]
[333419305,1722120646295,-500.4809293,0.00010958,2]
[333419306,1722120646304,-500.0,0.00010958,2]
[333419307,1722120646313,-500.0,0.00010958,2]
[333419308,1722120646322,-500.0,0.00010958,2]
[333419309,1722120646332,-500.0,0.00010958,2]
[333419310,1722120646341,-500.0,0.00010958,2]
[333419311,1722120646351,-500.0,0.00010958,2]
[333419312,1722120646360,-500.0,0.00010958,2]
[333419313,1722120646369,-500.0,0.00010958,2]
[333419314,1722120646379,-500.0,0.00010958,2]
[333419315,1722120646388,-500.0,0.00010958,2]
[333419316,1722120646398,-500.89558206,0.00010958,2]
[333419317,1722120646407,-500.0,0.00010958,2]
[333419318,1722120646417,-500.0,0.00010958,2]
[333419319,1722120646426,-500.0,0.00010958,2]
[333419320,1722120646436,-500.0,0.00010958,2]
[333419321,1722120646445,-500.0,0.00010958,2]
[333419322,1722120646455,-500.0,0.00010958,2]
[333419323,1722120646465,-500.0,0.00010958,2]
[333419324,1722120646475,-500.0,0.00010958,2]
[333419325,1722120646484,-500.0,0.00010958,2]
[333419326,1722120646493,-500.0,0.00010958,2]
[333419327,1722120646503,-500.0,0.00010958,2]
[333419328,1722120646512,-500.0,0.00010958,2]
[333419329,1722120646522,-500.0,0.00010958,2]
[333419330,1722120646532,-500.0,0.00010958,2]
[333419331,1722120646541,-500.0,0.00010958,2]
[333419332,1722120646550,-500.0,0.00010958,2]
[333419333,1722120646560,-500.0,0.00010958,2]
[333419334,1722120646571,-500.0,0.00010958,2]
[333419335,1722120646580,-500.0,0.00010958,2]
[333419336,1722120646590,-500.0,0.00010958,2]
[333419337,1722120646599,-500.0,0.00010958,2]